bitfinex-derivatives/quotes_ETHF0:USTF0_20230903
["timestamp","ask_amount","ask_price","bid_price","bid_amount"]
[1693757621854,5.61370316,1633.9,1633.8,23.32696]
[1693757622053,5.61370316,1633.9,1633.8,25.93836]
[1693757622250,5.61370316,1634.0,1633.9,0.0612]
[1693757622456,5.61370316,1634.0,1633.9,20.08517648]
[1693757623253,12.5371286,1634.1,1634.0,0.0612]
[1693757623254,11.73469316,1634.1,1634.0,0.0612]
[1693757623552,11.73469316,1634.1,1634.0,17.81448]
[1693757623754,11.73469316,1634.1,1634.0,20.42588]
[1693757627260,6.12099,1634.1,1634.0,20.42588]
[1693757638767,6.61318691,1634.1,1634.0,20.42588]
[1693757639277,6.61318691,1634.1,1634.0,20.92694223]
[1693757642178,7.54514799,1634.1,1634.0,20.92694223]
[1693757644186,4.48462799,1634.1,1634.0,20.92694223]
[1693757645487,3.55266691,1634.1,1634.0,20.92694223]
[1693757660691,12.60183043,1634.1,1634.0,12.13320223]
[1693757660893,15.66225043,1634.1,1634.0,9.07263223]
[1693757661588,15.66225043,1634.1,1634.0,6.01206223]
[1693757663295,21.26069813,1634.1,1634.0,6.01206223]
[1693757663489,15.66225043,1634.1,1634.0,5.511]
[1693757663691,12.30348,1634.0,1633.9,5.511]
[1693757665200,12.30348,1634.0,1633.9,8.57175]
[1693757666001,17.9019277,1634.0,1633.9,8.57175]
[1693757666194,12.30348,1634.0,1633.9,8.57175]
[1693757666394,17.91287848,1634.0,1633.9,8.57175]
[1693757667197,18.70170595,1634.0,1633.9,8.57175]
[1693757667401,12.30348,1634.0,1633.9,8.57175]
[1693757667699,17.91268169,1634.0,1633.9,8.57175]
[1693757668302,12.30348,1634.0,1633.9,8.57175]
[1693757668503,17.91210619,1634.0,1633.9,8.57175]
[1693757669202,12.30348,1634.0,1633.9,8.57175]
[1693757670098,17.91156424,1634.0,1633.9,8.57175]
[1693757670300,18.70170595,1634.0,1633.9,8.57175]
[1693757670597,12.30348,1634.0,1633.9,8.57175]
[1693757671598,18.70170595,1634.0,1633.9,8.57175]
[1693757676808,18.70170595,1634.0,1633.9,5.511]
[1693757677402,18.70170595,1634.0,1633.9,8.57175]
[1693757681209,19.6319029,1634.0,1633.9,8.57175]
[1693757681511,19.63843522,1634.0,1633.9,8.57175]
[1693757685514,13.23367695,1634.0,1633.9,8.57175]
[1693757688111,13.23367695,1634.0,1633.9,11.04895]
[1693757689017,13.23367695,1634.0,1633.9,14.10971]
[1693757689212,19.63843522,1634.0,1633.9,14.10971]
[1693757690620,19.63843522,1634.0,1633.9,14.17091]
[1693757696934,18.70823827,1634.0,1633.9,14.17091]
[1693757702336,15.64766827,1634.0,1633.9,14.17091]
[1693757702638,14.7889049,1634.0,1633.9,17.23167]
[1693757702842,11.7283349,1634.0,1633.9,20.29243]
[1693757703143,14.7889049,1634.0,1633.9,20.29243]
[1693757705839,3.52392306,1634.0,1633.9,20.29243]
[1693757706037,6.89695518,1634.1,1634.0,0.0612]
[1693757706038,0.49219691,1634.1,1634.0,0.0612]
[1693757706341,12.52498827,1634.3,1634.2,0.0612]
[1693757706530,15.58514827,1634.3,1634.2,14.7528]
[1693757706737,15.58514827,1634.3,1634.2,17.02273648]
[1693757709243,15.58514827,1634.3,1634.2,19.58083648]
[1693757710540,9.18039,1634.3,1634.2,16.52063648]
[1693757714347,12.24055,1634.3,1634.2,16.52063648]
[1693757724457,12.24055,1634.3,1634.2,13.96253648]
[1693757724954,12.24055,1634.3,1634.2,16.59033648]
[1693757730054,15.10771352,1634.3,1634.2,13.53013648]
[1693757730450,15.10771352,1634.3,1634.2,11.2602]
[1693757730757,15.10771352,1634.3,1634.2,5.5722]
[1693757731547,15.10771352,1634.3,1634.2,5.511]
[1693757738659,12.24055,1634.3,1634.2,5.511]
[1693757738859,15.10771352,1634.3,1634.2,5.511]
[1693757742557,21.5098017,1634.3,1634.2,5.511]
[1693757746264,18.64263818,1634.3,1634.2,5.511]
[1693757746566,21.5098017,1634.3,1634.2,5.511]
[1693757748459,22.31006273,1634.3,1634.2,5.511]
[1693757750566,22.31006273,1634.3,1634.2,5.5722]
[1693757752469,19.44289921,1634.3,1634.2,5.5722]
[1693757753068,22.31006273,1634.3,1634.2,5.5722]
[1693757754671,19.44289921,1634.3,1634.2,5.5722]
[1693757755373,19.44289921,1634.3,1634.2,8.6324]
[1693757756272,22.31006273,1634.3,1634.2,8.6324]
[1693757760170,19.44289921,1634.3,1634.2,8.6324]
[1693757760473,22.79679976,1634.3,1634.2,17.02273648]
[1693757760670,15.59445055,1634.3,1634.2,17.02273648]
[1693757762481,12.53429055,1634.3,1634.2,17.02273648]
[1693757762674,15.59445055,1634.3,1634.2,17.02273648]
[1693757764372,12.53429055,1634.3,1634.2,17.02273648]
[1693757764676,15.59445055,1634.3,1634.2,17.02273648]
[1693757765275,9.18039,1634.3,1634.2,17.02273648]
[1693757778573,6.12023,1634.3,1634.2,20.08293648]
[1693757779483,9.18039,1634.3,1634.2,20.08293648]
[1693757808499,9.18039,1634.3,1634.2,17.02273648]
[1693757814799,6.89736945,1634.4,1634.2,7.84213648]
[1693757815003,6.89736945,1634.4,1634.3,5.511]
[1693757815203,6.89736945,1634.4,1634.3,11.0832]
[1693757815499,6.89736945,1634.4,1634.3,13.6706]
[1693757815500,0.49187894,1634.4,1634.3,13.6706]
[1693757815706,11.22399051,1634.5,1634.3,13.6706]
[1693757815903,11.22399051,1634.5,1634.4,5.511]
[1693757816098,11.22399051,1634.5,1634.4,7.78093648]
[1693757816703,11.7114866,1634.5,1634.4,7.78093648]
[1693757819408,11.6502866,1634.5,1634.4,7.78093648]
[1693757819709,5.30599609,1634.5,1634.4,7.78093648]
[1693757822705,2.92559609,1634.5,1634.4,7.84213648]
[1693757822906,0.54869609,1634.5,1634.4,7.84213648]
[1693757823610,0.0612,1634.5,1634.4,7.84213648]
[1693757825801,11.46530948,1634.6,1634.5,0.0612]
[1693757826005,11.46530948,1634.6,1634.5,5.5722]
[1693757826207,11.46530948,1634.6,1634.5,6.10317341]
[1693757828610,8.93260948,1634.6,1634.5,6.10317341]
[1693757828920,6.41430948,1634.6,1634.5,6.10317341]
[1693757829209,11.43490948,1634.7,1634.5,6.10317341]
[1693757829411,11.43490948,1634.7,1634.6,7.78093648]
[1693757831616,11.43490948,1634.7,1634.6,7.84213648]
[1693757845221,20.61270948,1634.7,1634.6,13.96101648]
[1693757849032,14.1984,1634.7,1634.6,13.96101648]
[1693757851432,20.61270948,1634.7,1634.6,13.96101648]
[1693757856240,18.03650948,1634.7,1634.6,13.96101648]
[1693757861842,15.59210948,1634.7,1634.6,17.02045648]
[1693757862151,9.1778,1634.7,1634.6,17.02045648]
[1693757865348,15.59210948,1634.7,1634.6,17.02045648]
[1693757867346,9.1778,1634.7,1634.6,17.02045648]
[1693757867546,6.11852,1634.7,1634.6,17.02045648]
[1693757884756,12.04496352,1634.7,1634.6,11.69108]
[1693757884957,12.04496352,1634.7,1634.6,5.511]
[1693757885267,15.10424352,1634.7,1634.6,5.511]
[1693757887765,21.518553,1634.7,1634.6,5.511]
[1693757888265,21.518553,1634.7,1634.6,8.57044]
[1693757888466,18.65138948,1634.7,1634.6,8.57044]
[1693757890463,18.65138948,1634.7,1634.6,11.62988]
[1693757891868,21.518553,1634.7,1634.6,11.62988]
[1693757892070,18.65138948,1634.7,1634.6,11.62988]
[1693757893761,21.518553,1634.7,1634.6,11.62988]
[1693757895071,12.53282948,1634.7,1634.6,11.62988]
[1693757895269,12.53282948,1634.7,1634.6,14.68932]
[1693757895572,15.59207948,1634.7,1634.6,14.68932]
[1693757895974,12.53281948,1634.7,1634.6,14.68932]
[1693757896171,15.59206948,1634.7,1634.6,14.68932]
[1693757899570,12.53280948,1634.7,1634.6,14.75042]
[1693757899772,11.97643948,1634.9,1634.8,5.5721]
[1693757900070,5.56213,1634.9,1634.8,26.0374145]
[1693757900279,5.56213,1634.9,1634.8,25.58931648]
[1693757900471,3.05893,1634.9,1634.8,25.58931648]
[1693757902477,6.11783,1634.9,1634.8,25.58931648]
[1693757908286,6.11783,1634.9,1634.8,22.53024648]
[1693757908587,9.17673,1634.9,1634.8,22.53024648]
[1693757912203,9.17673,1634.9,1634.8,23.01173475]
[1693757926815,12.04389352,1634.9,1634.8,23.01173475]
[1693757927114,9.17673,1634.9,1634.8,23.01173475]
[1693757929019,6.41430948,1635.1,1635.0,0.0611]
[1693757929215,7.21609816,1635.2,1635.1,0.0611]
[1693757929216,9.17522,1635.2,1635.1,0.0611]
[1693757929414,6.11678,1635.2,1635.1,14.74763]
[1693757929717,6.11678,1635.2,1635.1,17.16403]
[1693757930217,3.05839,1635.2,1635.1,17.16403]
[1693757934918,9.1748,1635.3,1635.1,20.22254]
[1693757935118,9.1748,1635.3,1635.2,5.511]
[1693757935413,9.1748,1635.3,1635.2,14.68596]
[1693757935723,9.1748,1635.3,1635.2,16.95589648]
[1693757942726,7.90266,1635.4,1635.3,0.0611]
[1693757942924,3.05806,1635.4,1635.3,14.74652]
[1693757943118,6.11603,1635.4,1635.3,17.13372]
[1693757945828,12.04116352,1635.4,1635.3,8.63024]
[1693757946029,12.04116352,1635.4,1635.3,8.56914]
[1693757946330,20.61013352,1635.4,1635.0,6.01089904]
[1693757946527,20.61013352,1635.4,1635.0,9.06957904]
[1693757946726,23.09253352,1635.4,1635.0,9.06957904]
[1693757947127,23.09253352,1635.4,1635.0,12.12827904]
[1693757947523,23.09253352,1635.4,1635.0,15.18697904]
[1693757949034,23.09253352,1635.4,1635.0,9.06957904]
[1693757949234,23.09253352,1635.4,1635.0,8.56968]
[1693757950235,23.09253352,1635.4,1635.0,11.62838]
[1693757952231,23.09253352,1635.4,1635.0,16.95701648]
[1693757953434,23.09253352,1635.4,1635.1,5.511]
[1693757953640,23.09253352,1635.4,1635.1,11.628]
[1693757953839,23.09253352,1635.4,1635.1,8.56949]
[1693757955942,23.09253352,1635.4,1635.1,11.628]
[1693757956935,23.09253352,1635.4,1635.1,8.56949]
[1693757957641,23.09253352,1635.4,1635.1,11.628]
[1693757957841,23.09253352,1635.4,1635.1,8.56949]
[1693757958142,23.57692065,1635.4,1635.1,8.56949]
[1693757963947,30.79301881,1635.4,1635.1,8.56949]
[1693757965345,30.79301881,1635.4,1635.1,8.63059]
[1693757967746,5.511,1635.2,1635.0,0.0611]
[1693757968047,15.10120352,1635.1,1635.0,0.0611]
[1693757979562,15.10120352,1635.1,1635.0,5.5721]
[1693757995174,12.23404,1635.1,1635.0,5.5721]
[1693757995474,15.10120352,1635.1,1635.0,5.5721]
[1693758001979,12.23404,1635.1,1635.0,5.5721]
[1693758002482,15.10120352,1635.1,1635.0,5.5721]
[1693758002680,15.10120352,1635.1,1635.0,8.6308]
[1693758003076,12.23404,1635.1,1635.0,8.6308]
[1693758004977,12.23404,1635.1,1635.0,11.6895]
[1693758005182,9.17553,1635.1,1635.0,14.7482]
[1693758007282,9.17553,1635.1,1635.0,11.6895]
[1693758010685,12.23404,1635.1,1635.0,11.6895]
[1693758015288,10.27430816,1635.3,1635.2,0.0611]
[1693758015490,13.33257816,1635.3,1635.2,17.01699648]
[1693758015699,9.17478,1635.3,1635.2,17.01699648]
[1693758016190,9.17478,1635.3,1635.2,19.57199648]
[1693758016690,15.10024352,1635.3,1635.2,10.39703648]
[1693758018685,9.17478,1635.3,1635.2,13.45536648]
[1693758018886,12.23305,1635.3,1635.2,13.45536648]
[1693758019079,9.17475,1635.3,1635.2,16.51369648]
[1693758019284,9.17475,1635.3,1635.2,19.57202648]
[1693758020291,9.1742,1635.4,1635.3,0.0611]
[1693758020493,9.17421,1635.4,1635.3,11.68838]
[1693758022288,12.04137352,1635.4,1635.3,11.68838]
[1693758023393,9.17421,1635.4,1635.3,11.68838]
[1693758024495,12.04137352,1635.4,1635.3,11.68838]
[1693758026195,9.17421,1635.4,1635.3,8.63024]
[1693758026592,12.23234,1635.4,1635.3,8.63024]
[1693758026792,15.09950352,1635.4,1635.3,8.63024]
[1693758027797,15.09950352,1635.4,1635.3,5.5721]
[1693758032998,12.04117352,1635.4,1635.3,5.5721]
[1693758033301,15.09930352,1635.4,1635.3,5.5721]
[1693758033802,15.09930352,1635.4,1635.3,5.511]
[1693758036402,2.86716352,1635.4,1635.3,5.511]
[1693758036597,15.09930352,1635.4,1635.3,5.511]
[1693758044202,15.09930352,1635.4,1635.2,0.0611]
[1693758044504,22.31145168,1635.4,1635.3,5.511]
[1693758045309,22.31434107,1635.4,1635.3,5.511]
[1693758047601,22.31434107,1635.4,1635.2,0.0611]
[1693758047801,22.31434107,1635.4,1635.3,5.511]
[1693758048203,20.61030352,1635.4,1635.1,0.0611]
[1693758048411,7.21547796,1635.3,1635.1,0.0611]
[1693758048604,15.10044352,1635.2,1635.1,0.0611]
[1693758050206,22.31592148,1635.2,1635.1,0.0611]
[1693758051402,22.31592148,1635.2,1635.0,8.0771]
[1693758052005,22.31592148,1635.2,1635.0,0.0611]
[1693758052208,27.82692148,1635.2,1634.9,10.3559]
[1693758052400,12.72647796,1635.0,1634.8,0.0611]
[1693758052603,15.10268352,1634.9,1634.8,0.0611]
[1693758055613,15.10268352,1634.9,1634.7,10.5004]
[1693758064014,15.58437288,1634.9,1634.7,10.5004]
[1693758066318,21.09537288,1634.9,1634.7,4.9894]
[1693758068815,17.74708,1634.8,1634.7,4.9894]
[1693758073424,12.23608,1634.8,1634.7,4.9894]
[1693758091539,12.23608,1634.8,1634.6,5.5721]
[1693758091841,2.86716352,1634.7,1634.6,0.0611]
[1693758092032,15.10400352,1634.7,1634.6,0.0611]
[1693758092444,20.61500352,1634.7,1634.6,0.0611]
[1693758092938,20.61500352,1634.7,1634.5,0.0611]
[1693758093139,5.511,1634.6,1634.5,0.0611]
[1693758093340,17.7486,1634.6,1634.5,0.0611]
[1693758097735,0.0612,1634.5,1634.4,5.0617]
[1693758097939,15.16668352,1634.5,1634.4,5.0617]
[1693758108048,15.16668352,1634.5,1634.4,5.56054288]
[1693758108747,15.16668352,1634.5,1634.4,8.62031288]
[1693758109347,15.16668352,1634.5,1634.4,5.56054288]
[1693758109750,15.16668352,1634.5,1634.4,8.62031288]
[1693758110552,15.16668352,1634.5,1634.4,5.56054288]
[1693758112341,15.16668352,1634.5,1634.4,0.49884288]
[1693758112656,20.67768352,1634.5,1634.1,11.00554]
[1693758112847,11.92303415,1634.4,1634.1,11.00554]
[1693758113046,15.10700352,1634.3,1634.1,11.00554]
[1693758113449,20.61800352,1634.3,1634.1,11.00554]
[1693758115649,5.511,1634.2,1634.1,4.8239]
[1693758115843,17.7516,1634.2,1634.0,0.0612]
[1693758116047,17.7516,1634.2,1634.0,2.5691]
[1693758116248,2.86716352,1634.1,1634.0,2.5691]
[1693758116543,15.10848352,1634.1,1634.0,2.5691]
[1693758122753,15.10848352,1634.1,1634.0,0.0612]
[1693758135467,20.61948352,1634.1,1634.0,0.0612]
[1693758140466,20.61948352,1634.1,1634.0,2.5872]
[1693758142663,20.61948352,1634.1,1634.0,2.526]
[1693758143876,12.30328,1634.0,1633.9,2.583]
[1693758144077,12.30328,1634.0,1633.9,5.2141]
[1693758144473,17.81428,1634.0,1633.9,5.1529]
[1693758144873,17.81428,1634.0,1633.9,5.2141]
[1693758145073,17.81428,1634.0,1633.9,5.1529]
[1693758145276,17.81428,1634.0,1633.9,5.2141]
[1693758145478,17.81428,1634.0,1633.9,5.1529]
[1693758154481,17.81428,1634.0,1633.9,5.2141]
[1693758154683,17.81428,1634.0,1633.9,5.1529]
[1693758155077,17.81428,1634.0,1633.9,5.2141]
[1693758168604,24.22631415,1634.0,1633.9,5.2141]
[1693758179518,24.22631415,1634.0,1633.8,3.12209]
[1693758179711,24.22631415,1634.0,1633.8,5.70939]
[1693758179906,24.22631415,1634.0,1633.8,8.25129]
[1693758180112,2.86716352,1633.9,1633.8,8.25129]
[1693758180307,12.2428,1633.9,1633.8,8.25129]
[1693758180714,15.10996352,1633.9,1633.8,8.25129]
[1693758181312,12.2428,1633.9,1633.8,8.25129]
[1693758181513,15.10996352,1633.9,1633.8,8.25129]
[1693758183209,6.42360587,1634.0,1633.9,6.1826]
[1693758183408,16.10135147,1634.2,1634.1,0.0612]
[1693758183613,6.42360587,1634.2,1634.1,20.08345648]
[1693758183818,12.54388587,1634.2,1634.1,20.08345648]
[1693758184116,6.12028,1634.2,1634.1,20.08345648]
[1693758184617,9.18044,1634.2,1634.1,17.02312648]
[1693758184816,15.10776352,1634.2,1634.1,5.5722]
[1693758185115,21.53136939,1634.2,1634.1,8.63255]
[1693758185507,21.53136939,1634.2,1634.1,11.6929]
[1693758186215,18.47120939,1634.2,1634.1,11.6929]
[1693758186718,15.60404587,1634.2,1634.1,11.6929]
[1693758187722,9.18044,1634.2,1634.1,11.6929]
[1693758198723,9.18044,1634.2,1634.1,14.75325]
[1693758199227,6.12028,1634.2,1634.1,14.75325]
[1693758199626,6.12015,1634.3,1634.2,0.0612]
[1693758199923,9.18004,1634.3,1634.2,8.45147648]
[1693758200128,9.18004,1634.3,1634.2,13.89324648]
[1693758201223,9.18004,1634.3,1634.2,10.83307648]
[1693758203325,9.18004,1634.3,1634.2,16.34407648]
[1693758203525,9.18004,1634.3,1634.2,19.40424648]
[1693758204134,6.11998,1634.3,1634.2,19.40424648]
[1693758206230,6.11996,1634.3,1634.2,19.40424648]
[1693758207126,9.17994,1634.3,1634.2,19.40424648]
[1693758207528,6.11996,1634.3,1634.2,19.40424648]
[1693758207934,9.17994,1634.3,1634.2,19.40424648]
[1693758208230,6.11996,1634.3,1634.2,19.40424648]
[1693758208738,9.65778323,1634.5,1634.4,0.0612]
[1693758209035,9.17925,1634.5,1634.4,17.02150648]
[1693758209231,9.17925,1634.5,1634.4,19.61930648]
[1693758211637,9.24045,1634.5,1634.4,19.61930648]
[1693758217643,9.17925,1634.5,1634.4,19.61930648]
[1693758218847,12.04641352,1634.5,1634.4,19.61930648]
[1693758219049,9.17925,1634.5,1634.4,19.61930648]
[1693758221240,9.24045,1634.5,1634.4,19.61930648]
[1693758222047,12.10761352,1634.5,1634.4,19.61930648]
[1693758222845,9.24045,1634.5,1634.4,19.61930648]
[1693758232954,12.10761352,1634.5,1634.4,19.61930648]
[1693758234856,9.24045,1634.5,1634.4,19.61930648]
[1693758240354,12.10761352,1634.5,1634.4,19.61930648]
[1693758240862,9.24045,1634.5,1634.4,19.61930648]
[1693758241759,12.10761352,1634.5,1634.4,17.34937]
[1693758241959,18.5191684,1634.5,1634.4,17.34937]
[1693758242459,12.10761352,1634.5,1634.4,17.34937]
[1693758242664,15.16740352,1634.5,1634.3,5.511]
[1693758242864,22.38040276,1634.5,1634.3,5.511]
[1693758243055,6.41155488,1634.4,1634.3,5.511]
[1693758243370,12.23916,1634.4,1634.2,5.511]
[1693758243665,15.10708352,1634.3,1634.2,5.511]
[1693758253275,15.10708352,1634.3,1634.1,5.511]
[1693758253476,17.57968352,1634.3,1634.1,5.511]
[1693758255171,17.57968352,1634.3,1634.1,5.99402847]
[1693758256875,5.511,1634.2,1634.0,5.65633]
[1693758257178,15.10856352,1634.1,1634.0,2.5959]
[1693758257476,15.10856352,1634.1,1634.0,5.65644]
[1693758260378,15.10856352,1634.1,1634.0,2.5959]
[1693758262083,15.10856352,1634.1,1634.0,5.65644]
[1693758262777,15.10856352,1634.1,1634.0,2.5959]
[1693758263279,15.10856352,1634.1,1634.0,5.65644]
[1693758273681,15.10856352,1634.1,1634.0,8.71698]
[1693758275690,15.10856352,1634.1,1634.0,5.65644]
[1693758276787,15.10856352,1634.1,1634.0,8.71698]
[1693758278190,15.10856352,1634.1,1634.0,5.65644]
[1693758281202,15.10856352,1634.1,1634.0,2.5959]
[1693758281900,15.16976352,1634.1,1634.0,2.5347]
[1693758282102,20.68076352,1634.1,1634.0,2.5347]
[1693758284196,0.0612,1634.0,1633.7,8.57313]
[1693758284403,5.511,1633.8,1633.7,10.95883]
[1693758284603,15.22986934,1633.8,1633.7,10.95883]
[1693758284900,14.69373,1633.8,1633.7,10.95883]
[1693758288096,17.75464,1633.8,1633.7,10.95883]
[1693758290199,14.69373,1633.8,1633.7,10.95883]
[1693758290404,9.18273,1633.8,1633.7,16.46983]
[1693758290605,9.18274,1633.8,1633.7,19.53093]
[1693758297503,12.04990352,1633.8,1633.7,19.53093]
[1693758298106,9.18274,1633.8,1633.7,19.53093]
[1693758298607,12.04990352,1633.8,1633.7,19.53093]
[1693758299001,9.18274,1633.8,1633.7,19.53093]
[1693758299201,12.04990352,1633.8,1633.7,19.53093]
[1693758299400,12.04990352,1633.8,1633.7,16.46983]
[1693758300200,9.18274,1633.8,1633.7,16.46983]
[1693758302011,12.04990352,1633.8,1633.7,16.46983]
[1693758302210,9.18274,1633.8,1633.7,16.46983]
[1693758302810,12.04990352,1633.8,1633.7,16.46983]
[1693758303011,9.18274,1633.8,1633.7,16.46983]
[1693758303211,12.24366,1633.8,1633.7,16.46983]
[1693758305515,15.11082352,1633.8,1633.7,16.46983]
[1693758305711,12.24366,1633.8,1633.7,16.46983]
[1693758306515,15.11082352,1633.8,1633.7,16.46983]
[1693758306815,12.24366,1633.8,1633.7,16.46983]
[1693758307925,15.11082352,1633.8,1633.7,16.46983]
[1693758310322,12.24366,1633.8,1633.7,16.46983]
[1693758312820,15.59931254,1633.8,1633.7,16.46983]
[1693758313019,12.73214902,1633.8,1633.7,16.46983]
[1693758314125,15.59931254,1633.8,1633.7,16.46983]
[1693758318731,12.73214902,1633.8,1633.7,16.46983]
[1693758319535,15.59931254,1633.8,1633.7,16.46983]
[1693758320334,12.73214902,1633.8,1633.7,16.46983]
[1693758322935,15.59931254,1633.8,1633.7,16.46983]
[1693758323331,15.11082352,1633.8,1633.7,16.46983]
[1693758324835,12.24366,1633.8,1633.7,16.46983]
[1693758325027,6.12182,1633.8,1633.7,16.46983]
[1693758325230,6.12167,1633.9,1633.8,0.0612]
[1693758325531,6.12163,1633.9,1633.8,20.08577648]
[1693758349262,9.24312,1634.0,1633.9,9.24339]
[1693758349452,9.24312,1634.0,1633.9,14.75439]
[1693758351470,12.11028352,1634.0,1633.9,14.75439]
[1693758351766,9.24312,1634.0,1633.9,14.75439]
[1693758353762,12.11028352,1634.0,1633.9,14.75439]
[1693758355969,9.24312,1634.0,1633.9,14.75439]
[1693758357870,12.11028352,1634.0,1633.9,14.75439]
[1693758358865,15.17101352,1634.0,1633.8,11.69394]
[1693758359169,15.17101352,1634.0,1633.8,8.63303]
[1693758362766,15.17101352,1634.0,1633.8,11.69395]
[1693758367074,12.30385,1634.0,1633.8,11.69395]
[1693758367669,15.17101352,1634.0,1633.8,11.69395]
[1693758374677,15.17101352,1634.0,1633.8,14.75487]
[1693758378882,22.37876136,1634.0,1633.8,14.75487]
[1693758380781,15.17101352,1634.0,1633.8,14.75487]
[1693758385079,12.30385,1634.0,1633.8,14.75487]
[1693758388087,15.17101352,1634.0,1633.8,14.75487]
[1693758402296,15.66451586,1634.0,1633.8,14.75487]
[1693758404202,22.8722637,1634.0,1633.8,14.75487]
[1693758408904,15.66451586,1634.0,1633.8,14.75487]
[1693758410708,12.79735234,1634.0,1633.8,14.75487]
[1693758411007,12.79735234,1634.0,1633.9,11.51332648]
[1693758411008,9.73662234,1634.0,1633.9,11.51332648]
[1693758411207,9.73662234,1634.0,1633.9,17.02432648]
[1693758411406,9.73662234,1634.0,1633.9,19.43072648]
[1693758413513,9.24312,1634.0,1633.9,19.43072648]
[1693758438927,12.11028352,1634.0,1633.9,19.43072648]
[1693758444835,9.24312,1634.0,1633.9,19.43072648]
[1693758447940,12.11028352,1634.0,1633.9,19.43072648]
[1693758448744,9.24312,1634.0,1633.9,19.43072648]
[1693758450944,12.11028352,1634.0,1633.9,19.43072648]
[1693758455249,9.24312,1634.0,1633.9,19.43072648]
[1693758466055,12.11028352,1634.0,1633.9,19.43072648]
[1693758475158,12.6088321,1634.0,1633.9,19.43072648]
[1693758477058,9.74166858,1634.0,1633.9,19.43072648]
[1693758479459,12.6088321,1634.0,1633.9,19.43072648]
[1693758482263,9.74166858,1634.0,1633.9,19.43072648]
[1693758485265,9.24312,1634.0,1633.9,19.43072648]
[1693758490678,9.24312,1634.0,1633.9,17.02432648]
[1693758491169,9.24312,1634.0,1633.9,19.48632648]
[1693758500286,9.24312,1634.0,1633.9,17.02432648]
[1693758500785,9.24312,1634.0,1633.9,19.41672648]
[1693758506191,12.11028352,1634.0,1633.9,19.41672648]
[1693758506987,9.24312,1634.0,1633.9,19.41672648]
[1693758516797,9.72647792,1634.0,1633.9,19.41672648]
[1693758522300,12.59364144,1634.0,1633.9,19.41672648]
[1693758524702,9.72647792,1634.0,1633.9,19.41672648]
[1693758529106,9.24312,1634.0,1633.9,19.41672648]
[1693758536914,9.24312,1634.0,1633.9,17.02432648]
[1693758537312,9.24312,1634.0,1633.9,19.53972648]
[1693758539817,15.17101352,1634.0,1633.9,5.511]
[1693758540413,15.17101352,1634.0,1633.8,3.12201]
[1693758541022,15.17101352,1634.0,1633.8,3.06081]
[1693758544226,15.17101352,1634.0,1633.8,6.12173]
[1693758544924,15.65280664,1634.0,1633.8,6.12173]
[1693758547827,15.17101352,1634.0,1633.8,6.18293]
[1693758548419,27.91481594,1634.0,1633.7,6.12207]
[1693758548826,7.23280242,1633.9,1633.7,6.12207]
[1693758549027,12.30488,1633.8,1633.7,6.12207]
[1693758549328,15.67201992,1633.8,1633.7,6.12207]
[1693758551427,15.17204352,1633.8,1633.7,6.12207]
[1693758553332,20.68304352,1633.8,1633.7,6.12207]
[1693758565551,20.62184352,1633.8,1633.7,6.18327]
[1693758569153,17.75468,1633.8,1633.7,6.18327]
[1693758569839,20.62184352,1633.8,1633.7,6.18327]
[1693758573247,15.11084352,1633.8,1633.7,6.18327]
[1693758594665,12.24368,1633.8,1633.7,6.18327]
[1693758596474,15.11084352,1633.8,1633.7,6.18327]
[1693758600975,12.24368,1633.8,1633.7,6.18327]
[1693758603981,15.11084352,1633.8,1633.7,6.18327]
[1693758605480,9.18276,1633.8,1633.7,6.18327]
[1693758605681,17.56092352,1633.8,1633.7,6.18327]
[1693758606679,20.62184352,1633.8,1633.7,6.18327]
[1693758606882,6.12184,1633.8,1633.7,6.18327]
[1693758607080,6.12184,1633.8,1633.7,9.24442]
[1693758607678,9.18276,1633.8,1633.7,9.24442]
[1693758613289,9.18276,1633.8,1633.7,14.75542]
[1693758626785,9.18276,1633.8,1633.7,11.69427]
[1693758626991,9.18276,1633.8,1633.7,14.75549]
[1693758627601,9.18276,1633.8,1633.7,11.69427]
[1693758630993,12.24369,1633.8,1633.7,11.69427]
[1693758631299,15.11085352,1633.8,1633.7,5.5722]
[1693758631594,15.11085352,1633.8,1633.7,8.63339]
[1693758632399,15.11085352,1633.8,1633.7,5.5722]
[1693758633998,12.24369,1633.8,1633.7,5.5722]
[1693758634199,15.11085352,1633.8,1633.7,5.5722]
[1693758635198,15.11085352,1633.8,1633.7,8.6334]
[1693758635598,12.24369,1633.8,1633.7,8.6334]
[1693758636099,12.24369,1633.8,1633.7,8.63338]
[1693758638399,12.24369,1633.8,1633.7,11.69456]
[1693758639097,12.24369,1633.8,1633.7,8.63334]
[1693758640302,12.24369,1633.8,1633.7,8.63339]
[1693758641204,12.24369,1633.8,1633.7,8.63335]
[1693758643402,12.24369,1633.8,1633.7,11.69455]
[1693758644409,3.06087,1633.9,1633.8,0.0612]
[1693758644607,6.12169,1633.9,1633.8,22.91347653]
[1693758644803,6.12169,1633.9,1633.8,25.38177653]
[1693758645201,9.18258,1633.9,1633.8,25.38177653]
[1693758650705,1.28109,1634.2,1633.9,0.0612]
[1693758651000,11.08780543,1634.3,1634.1,14.69232]
[1693758651001,8.12728,1634.3,1634.1,14.69232]
[1693758651207,14.24775,1634.3,1634.2,5.511]
[1693758651503,14.24775,1634.3,1634.2,16.96171648]
[1693758651701,9.18062,1634.3,1634.2,16.96171648]
[1693758653210,9.18062,1634.3,1634.2,13.90145648]
[1693758653906,9.18062,1634.3,1634.2,13.96265648]
[1693758654103,8.65991,1634.5,1634.3,5.511]
[1693758654303,9.17932,1634.5,1634.4,13.90063648]
[1693758654499,9.17932,1634.5,1634.4,16.96048648]
[1693758654806,9.17932,1634.5,1634.4,19.44118648]
[1693758658119,3.05952,1634.6,1634.5,0.0612]
[1693758658412,3.05952,1634.6,1634.5,12.05521708]
[1693758658413,6.11904,1634.6,1634.5,12.05521708]
[1693758658621,9.17851,1634.6,1634.5,15.11465708]
[1693758662018,9.17851,1634.6,1634.5,14.7505]
[1693758666118,15.10514352,1634.6,1634.5,5.5722]
[1693758666822,15.10514352,1634.6,1634.5,5.511]
[1693758669520,15.10514352,1634.6,1634.5,8.57061]